bitfinex/quotes_BTCUSD_20241004
["timestamp","ask_amount","ask_price","bid_price","bid_amount"]
[1728067081317,0.160363,62359.0,62358.0,0.015]
[1728067081536,0.42116677,62359.0,62358.0,0.007]
[1728067081783,0.0976,62358.0,62346.0,0.2405041]
[1728067082028,0.04684794,62357.0,62353.0,0.2405041]
[1728067082249,0.04684794,62357.0,62349.0,0.320774]
[1728067082483,0.18380377,62354.0,62348.0,0.160388]
[1728067082699,0.160378,62353.0,62347.0,0.320781]
[1728067082919,0.0754,62352.0,62346.0,0.2405041]
[1728067083147,0.0754,62352.0,62345.0,0.320795]
[1728067083588,0.0754,62352.0,62339.0,0.3329643]
[1728067083589,0.18380377,62350.0,62349.0,0.012]
[1728067083840,0.0992,62351.0,62348.0,0.160388]
[1728067084307,0.0992,62351.0,62347.0,0.007]
[1728067084308,0.0992,62351.0,62347.0,0.167392]
[1728067084548,0.259583,62351.0,62346.0,0.160395]
[1728067084770,0.160388,62349.0,62342.0,0.32081]
[1728067085013,0.0992,62351.0,62345.0,0.160396]
[1728067085245,0.160386,62350.0,62348.0,0.007]
[1728067085470,0.34419077,62349.0,62348.0,0.007]
[1728067085693,0.51859077,62349.0,62348.0,0.007]
[1728067085918,0.56543871,62349.0,62348.0,0.007]
[1728067086162,0.54373729,62349.0,62348.0,0.007]
[1728067086426,0.160395,62346.0,62345.0,0.007]
[1728067086640,0.160395,62346.0,62337.0,0.633257]
[1728067086641,0.1685,62348.0,62342.0,0.009]
[1728067086865,0.18380377,62343.0,62342.0,0.009]
[1728067087086,0.18380377,62343.0,62339.0,0.2405041]
[1728067087328,0.0927,62342.0,62339.0,0.2405041]
[1728067087568,0.0927,62342.0,62337.0,0.00164]
[1728067087795,0.18380377,62339.0,62337.0,0.00164]
[1728067090166,0.18380377,62339.0,62338.0,0.004642]
[1728067090392,0.082,62347.0,62341.0,0.320815]
[1728067090634,0.0998,62349.0,62348.0,0.16039]
[1728067091110,0.0998,62356.0,62350.0,0.320769]
[1728067091362,0.0998,62356.0,62352.0,0.160378]
[1728067091630,0.0251435,62355.0,62350.0,0.320766]
[1728067091868,0.0251435,62355.0,62353.0,0.160376]
[1728067092104,0.0251435,62355.0,62350.0,0.320766]
[1728067092105,0.0251435,62355.0,62352.0,0.160379]
[1728067092324,0.0251435,62355.0,62352.0,0.160377]
[1728067092541,0.0251435,62355.0,62354.0,0.160374]
[1728067093740,0.0251435,62355.0,62354.0,0.163374]
[1728067093949,0.0251435,62355.0,62354.0,0.166374]
[1728067094461,0.03444109,62355.0,62354.0,0.006]
[1728067096730,0.03444109,62355.0,62354.0,0.166374]
[1728067097369,0.03444109,62355.0,62354.0,0.006]
[1728067097821,0.03444109,62355.0,62354.0,0.166374]
[1728067098009,0.0251435,62355.0,62354.0,0.166374]
[1728067098211,0.0251435,62355.0,62354.0,0.006]
[1728067098436,0.00935905,62355.0,62354.0,0.006]
[1728067101132,0.16973105,62355.0,62354.0,0.006]
[1728067101335,0.00935905,62355.0,62354.0,0.006]
[1728067101823,0.03450282,62355.0,62354.0,0.168014]
[1728067102783,0.00935905,62355.0,62354.0,0.168014]
[1728067102997,0.0998,62356.0,62355.0,0.160372]
[1728067103233,0.0998,62356.0,62354.0,0.00764]
[1728067103460,0.00936833,62355.0,62354.0,0.00764]
[1728067103679,0.00938589,62355.0,62354.0,0.00764]
[1728067104115,0.00938589,62355.0,62354.0,0.00464]
[1728067105193,0.00938589,62355.0,62354.0,0.00164]
[1728067105407,0.00938589,62355.0,62354.0,0.164014]
[1728067105668,0.00938589,62355.0,62354.0,0.162014]
[1728067105893,0.00938589,62355.0,62354.0,0.00464]
[1728067106141,0.27510063,62355.0,62354.0,0.00764]
[1728067106400,0.5542044,62355.0,62354.0,0.00764]
[1728067106623,0.5542044,62355.0,62340.0,0.2405041]
[1728067106624,0.1755,62352.0,62340.0,0.2405041]
[1728067106841,0.335879,62352.0,62351.0,0.2405041]
[1728067107067,0.335879,62352.0,62340.0,0.2405041]
[1728067107068,0.160391,62348.0,62340.0,0.2405041]
[1728067107297,0.160393,62347.0,62340.0,0.2405041]
[1728067107725,0.18554149,62346.0,62340.0,0.4009131]
[1728067108195,0.02514649,62346.0,62340.0,0.2405041]
[1728067108428,0.160397,62346.0,62340.0,0.4009131]
[1728067108903,0.160397,62346.0,62340.0,0.2405041]
[1728067109136,0.160397,62346.0,62341.0,0.160407]
[1728067109365,0.160397,62346.0,62339.0,0.320824]
[1728067109366,0.160397,62346.0,62340.0,0.160409]
[1728067109596,0.0093608,62345.0,62340.0,0.016]
[1728067110029,0.0093608,62345.0,62340.0,0.009]
[1728067110255,0.0093608,62345.0,62341.0,0.007]
[1728067110700,0.1697588,62345.0,62341.0,0.007]
[1728067110913,0.1697588,62345.0,62340.0,0.169409]
[1728067111122,0.1697588,62345.0,62340.0,0.178409]
[1728067111123,0.0103608,62345.0,62340.0,0.178409]
[1728067111338,0.160403,62343.0,62340.0,0.009]
[1728067111583,0.160403,62343.0,62340.0,0.019]
[1728067111809,0.00933448,62342.0,62340.0,0.019]
[1728067112289,0.0251467,62344.0,62339.0,0.320824]
[1728067112492,0.00932864,62341.0,62339.0,0.320824]
[1728067112714,0.02514816,62342.0,62341.0,0.160408]
[1728067113133,0.03448264,62342.0,62339.0,0.320824]
[1728067113348,0.19589064,62342.0,62340.0,0.013]
[1728067113568,0.03548264,62342.0,62340.0,0.013]
[1728067113791,0.03524004,62342.0,62340.0,0.173409]
[1728067113973,0.03524004,62342.0,62341.0,0.160408]
[1728067114234,0.03524004,62342.0,62341.0,0.172408]
[1728067114708,0.03424004,62342.0,62341.0,0.012]
[1728067115378,0.03424004,62342.0,62340.0,0.162049]
[1728067115604,0.06038694,62342.0,62341.0,0.013]
[1728067116054,0.06038694,62342.0,62341.0,0.173408]
[1728067116276,0.05938694,62342.0,62341.0,0.160408]
[1728067116516,0.05938694,62342.0,62340.0,0.00164]
[1728067116724,0.06038694,62342.0,62340.0,0.01464]
[1728067117153,0.06038694,62342.0,62341.0,0.012]
[1728067117378,0.06038694,62342.0,62341.0,0.172408]
[1728067117842,0.05938694,62342.0,62341.0,0.172408]
[1728067118050,0.05938694,62342.0,62341.0,0.185408]
[1728067118257,0.06038694,62342.0,62341.0,0.185408]
[1728067118485,0.03524004,62342.0,62341.0,0.185408]
[1728067119187,0.03524004,62342.0,62341.0,0.173408]
[1728067120489,0.03524004,62342.0,62341.0,0.185408]
[1728067121793,0.0603866,62342.0,62341.0,0.185408]
[1728067122955,0.03524004,62342.0,62341.0,0.185408]
[1728067125905,0.06038661,62342.0,62341.0,0.185408]
[1728067128378,0.03524004,62342.0,62341.0,0.185408]
[1728067128616,0.01033448,62342.0,62341.0,0.20246366]
[1728067128835,0.001,62342.0,62341.0,0.21907337]
[1728067129072,0.001,62342.0,62341.0,0.20201771]
[1728067129287,0.001,62342.0,62341.0,0.20244426]
[1728067129473,0.001,62342.0,62341.0,0.21905306]
[1728067130223,0.001,62342.0,62341.0,0.22225254]
[1728067131348,0.001,62342.0,62341.0,0.21905306]
[1728067131575,0.001,62342.0,62341.0,0.21910973]
[1728067132669,0.001,62342.0,62341.0,0.56259644]
[1728067132885,0.001,62342.0,62341.0,0.52889471]
[1728067133100,0.001,62342.0,62341.0,0.56474842]
[1728067133760,0.001,62342.0,62341.0,0.55274842]
[1728067133996,0.00082,62352.0,62351.0,0.160382]
[1728067134517,0.01037444,62352.0,62351.0,0.160382]
[1728067134576,0.00082,62352.0,62351.0,0.160382]
[1728067135977,0.00082,62352.0,62351.0,0.173382]
[1728067137093,0.00082,62352.0,62351.0,0.185382]
[1728067144877,0.07582,62352.0,62351.0,0.185382]
[1728067145558,0.18372543,62352.0,62351.0,0.185382]
[1728067148197,0.17402,62352.0,62351.0,0.185382]
[1728067149138,0.18372156,62352.0,62351.0,0.185382]
[1728067149634,0.17402,62352.0,62351.0,0.185382]
[1728067149866,0.18373203,62352.0,62351.0,0.185382]
[1728067150808,0.17402,62352.0,62351.0,0.185382]
[1728067163132,0.1837354,62352.0,62351.0,0.025]
[1728067163375,0.334399,62352.0,62351.0,0.025]
[1728067163653,0.34412082,62352.0,62351.0,0.025]
[1728067164121,0.34412082,62352.0,62351.0,0.013]
[1728067164363,0.18374182,62352.0,62351.0,0.013]
[1728067164590,0.18374182,62352.0,62351.0,0.019]
[1728067164835,0.18374182,62352.0,62351.0,0.006]
[1728067165111,0.18374182,62352.0,62351.0,0.173382]
[1728067166349,0.34412082,62352.0,62351.0,0.013]
[1728067169192,0.39219525,62352.0,62351.0,0.013]
[1728067169413,0.34412082,62352.0,62351.0,0.013]
[1728067169622,0.39222922,62352.0,62351.0,0.013]
[1728067171414,0.36926494,62352.0,62351.0,0.013]
[1728067172305,0.44137658,62352.0,62351.0,0.013]
[1728067172517,0.257008,62352.0,62351.0,0.013]
[1728067172949,0.20888594,62352.0,62351.0,0.013]
[1728067173420,0.20888594,62352.0,62351.0,0.173382]
[1728067173648,0.13388594,62352.0,62351.0,0.173382]
[1728067176120,0.12416412,62352.0,62351.0,0.173382]
[1728067176775,0.12420412,62352.0,62351.0,0.173382]
[1728067177694,0.13212936,62352.0,62351.0,0.173382]
[1728067177918,0.12420412,62352.0,62351.0,0.173382]
[1728067178578,0.10698524,62352.0,62351.0,0.173382]
[1728067182496,0.10698524,62352.0,62351.0,0.013]
[1728067182706,0.10698524,62352.0,62351.0,0.173382]
[1728067183166,0.00878524,62352.0,62351.0,0.173382]
[1728067200439,0.10538524,62352.0,62351.0,0.013]
[1728067201981,0.10513987,62352.0,62351.0,0.013]
[1728067202878,0.10513987,62352.0,62351.0,0.173382]
[1728067203240,0.10513987,62352.0,62351.0,0.29419886]
[1728067203241,0.00853987,62352.0,62351.0,0.29419886]
[1728067203704,0.00061463,62352.0,62351.0,0.29419886]
[1728067204643,0.00061463,62352.0,62351.0,0.28119886]
[1728067204867,0.00061463,62352.0,62351.0,0.30819886]
[1728067205095,0.00061463,62352.0,62351.0,0.29419886]
[1728067205369,0.00061463,62352.0,62351.0,0.173382]
[1728067205579,0.00061463,62352.0,62351.0,0.29419886]
[1728067206009,0.00061463,62352.0,62351.0,0.28119886]
[1728067206235,0.00061463,62352.0,62351.0,0.29519886]
[1728067206459,0.00061463,62352.0,62351.0,0.30919886]
[1728067207771,0.00061463,62352.0,62351.0,0.32614664]
[1728067209931,0.00061463,62352.0,62351.0,0.30919886]
[1728067210197,0.00061463,62352.0,62351.0,0.32612955]
[1728067210452,0.00061463,62352.0,62351.0,0.34306042]
[1728067211151,0.00061463,62352.0,62351.0,0.20531269]
[1728067214060,0.00854089,62352.0,62351.0,0.20531269]
[1728067214294,0.00854089,62352.0,62351.0,0.188382]
[1728067214791,0.00061463,62352.0,62351.0,0.188382]
[1728067215233,0.00061463,62352.0,62351.0,0.20539448]
[1728067220376,0.00061463,62352.0,62351.0,0.20703648]
[1728067220597,0.00061463,62352.0,62351.0,0.190024]
[1728067227276,0.00061463,62352.0,62351.0,0.32777957]
[1728067227972,0.00061463,62352.0,62351.0,0.73147038]
[1728067228220,0.00061463,62352.0,62351.0,0.49096628]
[1728067228474,0.00061463,62352.0,62351.0,0.90419506]
[1728067228729,0.002,62370.0,62369.0,0.160336]
[1728067228973,0.002,62370.0,62369.0,0.29809157]
[1728067229224,0.01005314,62370.0,62369.0,0.29809157]
[1728067229459,0.002,62370.0,62369.0,0.29809157]
[1728067229936,0.002,62370.0,62369.0,0.31209157]
[1728067230216,0.002,62370.0,62369.0,0.29809157]
[1728067230465,0.002,62370.0,62369.0,0.31209157]
[1728067230958,0.002,62370.0,62369.0,0.46127828]
[1728067231191,0.002,62370.0,62369.0,0.47527828]
[1728067231669,0.002,62370.0,62369.0,0.48927828]
[1728067232141,0.002821,62370.0,62369.0,0.47727828]
[1728067232378,0.002821,62370.0,62369.0,0.47433957]
[1728067232756,0.002821,62370.0,62369.0,0.49127828]
[1728067232758,0.002821,62370.0,62369.0,0.49652797]
[1728067232966,0.002821,62370.0,62369.0,0.46558926]
[1728067233169,0.002821,62370.0,62369.0,0.47958926]
[1728067234218,0.002821,62370.0,62369.0,0.47758926]
[1728067235695,0.002821,62370.0,62369.0,0.57758926]
[1728067235904,0.002821,62370.0,62369.0,0.69738926]
[1728067237412,0.002821,62370.0,62369.0,0.70238926]
[1728067237857,0.002821,62370.0,62369.0,0.70438926]
[1728067238081,0.002821,62370.0,62369.0,0.69038926]
[1728067238290,0.002821,62370.0,62369.0,0.70438926]
[1728067239135,0.002821,62370.0,62369.0,0.69038926]
[1728067239518,0.002821,62370.0,62369.0,0.70438926]
[1728067240138,0.002821,62370.0,62369.0,0.66548926]
[1728067241446,0.002821,62370.0,62369.0,0.67191426]
[1728067243553,0.002821,62370.0,62369.0,0.69491426]
[1728067245175,0.002821,62370.0,62369.0,1.17591426]
[1728067249253,0.002821,62370.0,62369.0,1.07001426]
[1728067249942,0.002821,62370.0,62369.0,0.9491974]
[1728067250178,0.002821,62370.0,62369.0,1.07001426]
[1728067256699,0.002821,62370.0,62369.0,1.06501426]
[1728067258327,0.002821,62370.0,62369.0,1.07001426]
[1728067259913,0.002821,62370.0,62369.0,1.07201426]
[1728067264484,0.002821,62370.0,62369.0,1.12724346]
[1728067264696,0.002821,62370.0,62369.0,1.07201426]
[1728067264915,0.002821,62370.0,62369.0,1.12724417]
[1728067266035,0.002821,62370.0,62369.0,1.07201426]
[1728067269284,0.002821,62370.0,62369.0,1.12724631]
[1728067269526,0.002821,62370.0,62369.0,1.12724801]
[1728067271693,0.002821,62370.0,62369.0,1.19776907]
[1728067271927,0.00082,62376.0,62375.0,0.49223686]
[1728067272164,0.00122,62379.0,62378.0,0.38812886]
[1728067272401,0.00122,62379.0,62378.0,0.60654932]
[1728067272634,0.00122,62379.0,62378.0,1.08748932]
[1728067273609,0.3313041,62390.0,62389.0,0.28110086]
[1728067273851,0.3313041,62390.0,62389.0,0.44428757]
[1728067274089,0.0908,62390.0,62389.0,0.44428757]
[1728067275315,0.0908,62390.0,62389.0,0.45828757]
[1728067275548,0.0908,62390.0,62389.0,0.47228757]
[1728067276263,0.0908,62390.0,62389.0,0.30910086]
[1728067277979,0.1729,62390.0,62389.0,0.188284]
[1728067279170,0.1729,62390.0,62389.0,0.028]
[1728067279618,0.1729,62390.0,62389.0,0.188284]
[1728067280365,0.1729,62390.0,62389.0,0.028]
[1728067280836,0.320656,62392.0,62382.0,0.160301]
[1728067280837,0.0765,62386.0,62382.0,0.160301]
[1728067281069,0.0765,62384.0,62382.0,0.160301]
[1728067281313,0.0932,62383.0,62382.0,0.160301]
[1728067281592,0.1697,62383.0,62382.0,0.160301]
[1728067282303,0.1697,62383.0,62382.0,0.28111786]
[1728067282795,0.1697,62383.0,62382.0,0.28811786]
[1728067283282,0.1697,62383.0,62382.0,0.160301]
[1728067283545,0.1697,62383.0,62382.0,0.169301]
[1728067285238,0.1707,62383.0,62382.0,0.178301]
[1728067287280,0.1707,62383.0,62382.0,0.018]
[1728067287531,0.331,62383.0,62382.0,0.018]
[1728067288032,0.45772386,62380.0,62379.0,0.00164]
[1728067288296,0.45772386,62380.0,62379.0,0.2421441]
[1728067288544,0.45772386,62380.0,62379.0,0.00164]
[1728067289009,0.336907,62380.0,62379.0,0.00164]
[1728067289483,0.336907,62380.0,62379.0,0.00564]
[1728067289962,0.336907,62380.0,62379.0,0.00864]
[1728067291435,0.36203925,62380.0,62379.0,0.00864]
[1728067292647,0.336907,62380.0,62379.0,0.00864]
[1728067293826,0.1766,62380.0,62379.0,0.00864]
[1728067295494,0.336907,62380.0,62379.0,0.00864]
[1728067296408,0.1766,62380.0,62379.0,0.16895]
[1728067297376,0.1766,62380.0,62379.0,0.16595]
[1728067297614,0.1796,62380.0,62379.0,0.16595]
[1728067297853,0.1796,62380.0,62379.0,0.16195]
[1728067298129,0.1786,62380.0,62379.0,0.16195]
[1728067298368,0.1786,62380.0,62379.0,0.16495]
[1728067298605,0.1786,62380.0,62379.0,0.16795]
[1728067298836,0.1786,62380.0,62379.0,0.16495]
[1728067299061,0.1766,62380.0,62379.0,0.16195]
[1728067299275,0.1786,62380.0,62379.0,0.17195]
[1728067304883,0.002,62380.0,62379.0,0.3559218]
[1728067305329,0.002,62380.0,62379.0,0.37338418]
[1728067306465,0.002,62380.0,62379.0,0.18941238]
[1728067306680,0.002,62380.0,62379.0,0.37338418]
[1728067308341,0.0815,62380.0,62379.0,0.17195]
[1728067308568,0.18,62380.0,62379.0,0.17195]
[1728067309784,0.179,62380.0,62379.0,0.16695]
[1728067310497,0.179,62380.0,62379.0,0.00664]
[1728067310734,0.178,62380.0,62379.0,0.00164]
[1728067311202,0.179,62380.0,62379.0,0.00664]
[1728067311417,0.179,62380.0,62379.0,0.16695]
[1728067311639,0.339307,62380.0,62379.0,0.00664]
[1728067311871,0.5222788,62380.0,62379.0,0.00464]
[1728067312311,0.338307,62380.0,62379.0,0.00764]
[1728067312557,0.34551287,62380.0,62379.0,0.00464]
[1728067312781,0.48164197,62380.0,62379.0,0.00164]
[1728067312997,0.45950829,62380.0,62379.0,0.00164]
[1728067313231,0.53248467,62380.0,62379.0,0.00164]
[1728067315303,0.53348467,62380.0,62379.0,0.00164]
[1728067315742,0.53248467,62380.0,62379.0,0.00164]
[1728067315962,0.53648467,62380.0,62379.0,0.00164]
[1728067316853,0.72480695,62380.0,62379.0,0.00164]
[1728067317098,0.37764844,62380.0,62379.0,0.00164]
[1728067318447,0.35251287,62380.0,62379.0,0.00164]
[1728067321274,0.34851287,62380.0,62379.0,0.00164]
[1728067321727,0.37464736,62380.0,62379.0,0.00164]
[1728067321952,0.37164736,62380.0,62379.0,0.00164]
[1728067322184,0.37064736,62380.0,62379.0,0.00164]
[1728067322439,0.37464736,62380.0,62379.0,0.00164]
[1728067322871,0.52337433,62380.0,62379.0,0.00164]
[1728067323127,0.37764736,62380.0,62379.0,0.00164]
[1728067325072,0.35251287,62380.0,62379.0,0.00164]
[1728067328665,0.34551287,62380.0,62379.0,0.00164]
[1728067328940,0.34851287,62380.0,62379.0,0.00164]
[1728067330350,0.18820587,62380.0,62379.0,0.00164]
[1728067330590,0.18820587,62380.0,62379.0,0.16195]
[1728067331055,0.18620587,62380.0,62379.0,0.16195]
[1728067331304,0.18,62380.0,62379.0,0.00164]
[1728067331529,0.18714933,62380.0,62379.0,0.00164]
[1728067331757,0.18514933,62380.0,62379.0,0.00464]
[1728067331995,0.18514933,62380.0,62379.0,0.00764]
[1728067332505,0.44900855,62380.0,62379.0,0.00764]
[1728067332796,0.160333,62370.0,62369.0,0.2405041]
[1728067333029,0.5210048,62370.0,62369.0,0.2405041]
[1728067333266,0.36892454,62370.0,62362.0,0.2405041]
[1728067333727,0.16035,62364.0,62362.0,0.2405041]
[1728067333984,0.0824,62363.0,62362.0,0.2405041]
[1728067334214,0.0917333,62363.0,62358.0,0.320725]
[1728067334672,0.0963,62362.0,62359.0,0.160361]
[1728067334900,0.0963,62362.0,62356.0,0.320735]
[1728067335131,0.00929302,62361.0,62360.0,0.160359]
[1728067337140,0.01029302,62361.0,62360.0,0.160359]
[1728067337366,0.01129302,62361.0,62360.0,0.162359]
[1728067337772,0.00929302,62361.0,62360.0,0.160359]
[1728067337980,0.01029302,62361.0,62360.0,0.160359]
[1728067338204,0.01129302,62361.0,62360.0,0.162359]
[1728067341316,0.43222082,62361.0,62360.0,0.002]
[1728067341554,0.53022082,62361.0,62360.0,0.002]
[1728067341746,0.55636245,62361.0,62360.0,0.004]
[1728067341946,0.55636245,62361.0,62360.0,0.002]
[1728067342144,0.320728,62359.0,62352.0,0.001642]
[1728067342385,0.160369,62356.0,62355.0,0.2405041]
[1728067342525,0.160369,62356.0,62352.0,0.16202]
[1728067342729,0.16964078,62356.0,62352.0,0.16202]
[1728067343148,0.00927178,62356.0,62353.0,0.160376]
[1728067344376,0.01127178,62356.0,62355.0,0.002]
[1728067344817,0.17064278,62356.0,62353.0,0.002]
[1728067345015,0.01027178,62356.0,62353.0,0.162375]
[1728067345240,0.00927178,62356.0,62353.0,0.160375]
[1728067345468,0.01027178,62356.0,62354.0,0.160373]
[1728067345945,0.01027178,62356.0,62355.0,0.160372]
[1728067346568,0.00927178,62356.0,62355.0,0.160372]
[1728067346773,0.02514163,62361.0,62360.0,0.160359]
[1728067347194,0.03438284,62361.0,62360.0,0.160359]
[1728067347574,0.02514163,62361.0,62360.0,0.160359]
[1728067348609,0.0826,62365.0,62363.0,0.160351]
[1728067349043,0.00926901,62364.0,62363.0,0.160351]
[1728067351637,0.01126901,62364.0,62363.0,0.160351]
[1728067351881,0.03640782,62364.0,62362.0,0.160353]
[1728067352350,0.03640782,62364.0,62350.0,0.0821]
[1728067352582,0.03640782,62364.0,62349.0,0.1839718]
[1728067352583,0.05305918,62363.0,62362.0,0.160353]
[1728067352810,0.03640782,62364.0,62362.0,0.160353]
[1728067353037,0.0092509,62363.0,62362.0,0.160353]
[1728067354656,0.0092509,62363.0,62362.0,0.162353]
[1728067354892,0.0092509,62363.0,62362.0,0.164353]
[1728067355127,0.0092509,62363.0,62362.0,0.162353]
[1728067355353,0.0092509,62363.0,62362.0,0.164353]
[1728067357324,0.0092509,62363.0,62362.0,0.165995]
[1728067358276,0.0092509,62363.0,62362.0,0.005642]
[1728067358747,0.242946,62365.0,62362.0,0.165996]
[1728067358989,0.0826,62365.0,62364.0,0.160348]
[1728067360347,0.0826,62365.0,62362.0,0.004642]
[1728067360348,0.175,62370.0,62369.0,0.160336]
[1728067360785,0.0963,62370.0,62369.0,0.160336]
[1728067362192,0.0963,62370.0,62369.0,0.161336]
[1728067362898,0.0963,62370.0,62369.0,0.162336]
[1728067364498,0.0963,62370.0,62369.0,0.002]
[1728067364773,0.10556225,62370.0,62369.0,0.002]
[1728067365484,0.10556225,62370.0,62369.0,0.162336]
[1728067365700,0.00713468,62370.0,62369.0,0.162336]
[1728067365930,0.00894066,62370.0,62369.0,0.002]
[1728067366124,0.160333,62370.0,62369.0,0.002]
[1728067366380,0.00894066,62370.0,62369.0,0.002]
[1728067366811,0.160331,62371.0,62369.0,0.002]
[1728067367030,0.00894422,62370.0,62369.0,0.002]
[1728067367933,0.16927722,62370.0,62369.0,0.002]
[1728067368143,0.160333,62370.0,62369.0,0.002]
[1728067368408,0.16926654,62370.0,62369.0,0.002]
[1728067368886,0.16926654,62370.0,62369.0,0.001]
[1728067369352,0.00893354,62370.0,62369.0,0.001]
[1728067369850,0.00893354,62370.0,62369.0,0.002]
[1728067371234,0.16926654,62370.0,62369.0,0.002]
[1728067371669,0.26126654,62370.0,62369.0,0.003642]
[1728067371880,0.26208754,62370.0,62369.0,0.003642]
[1728067375313,0.10175454,62370.0,62369.0,0.003642]
[1728067375800,0.26208754,62370.0,62369.0,0.003642]
[1728067376035,0.10175454,62370.0,62369.0,0.003642]
[1728067377408,0.14981573,62370.0,62369.0,0.003642]
[1728067378566,0.10175454,62370.0,62369.0,0.003642]
[1728067380140,0.26208754,62370.0,62369.0,0.003642]
[1728067381561,0.33424013,62370.0,62369.0,0.003642]
[1728067384107,0.33424353,62370.0,62369.0,0.003642]
[1728067384559,0.17391053,62370.0,62369.0,0.003642]
[1728067385243,0.33424353,62370.0,62369.0,0.003642]
[1728067387125,0.17391053,62370.0,62369.0,0.003642]
[1728067387352,0.33424353,62370.0,62369.0,0.003642]
[1728067387617,0.53764571,62370.0,62369.0,0.003642]
[1728067387875,0.54048007,62370.0,62369.0,0.003642]
[1728067388771,0.54048007,62370.0,62369.0,0.002642]
[1728067388997,0.54148007,62370.0,62369.0,0.002642]
[1728067389689,0.54048007,62370.0,62369.0,0.002642]
[1728067390144,0.54017465,62370.0,62369.0,0.001642]
[1728067390359,0.54217465,62370.0,62369.0,0.001642]
[1728067390611,0.54317465,62370.0,62369.0,0.001642]
[1728067390832,0.54217465,62370.0,62369.0,0.001642]
[1728067391060,0.54417465,62370.0,62369.0,0.001642]
[1728067391799,0.56931303,62370.0,62369.0,0.001642]
[1728067395247,0.56942921,62370.0,62369.0,0.001642]
[1728067395497,0.71385597,62370.0,62369.0,0.001642]
[1728067395965,0.84298823,62370.0,62369.0,0.001642]
[1728067397331,0.86598823,62370.0,62369.0,0.001642]
[1728067397561,1.02917494,62370.0,62369.0,0.001642]
[1728067398000,1.00403656,62370.0,62369.0,0.001642]
[1728067398213,0.84084985,62370.0,62369.0,0.001642]
[1728067399367,0.93865203,62370.0,62369.0,0.001642]
[1728067399635,0.93788092,62370.0,62369.0,0.001642]
[1728067400294,0.93785657,62370.0,62369.0,0.001642]
[1728067401209,0.80903481,62370.0,62369.0,0.001642]
[1728067401656,0.93788529,62370.0,62369.0,0.001642]
[1728067402096,0.93805554,62370.0,62369.0,0.001642]
[1728067402551,0.9631952,62370.0,62369.0,0.001642]
[1728067402767,1.10757587,62370.0,62369.0,0.001642]
[1728067403283,0.8341629,62370.0,62369.0,0.001642]
[1728067406508,0.8571629,62370.0,62369.0,0.001642]
[1728067407447,0.98601558,62370.0,62369.0,0.001642]
[1728067408634,0.96087592,62370.0,62369.0,0.001642]
[1728067409105,1.10887306,62370.0,62369.0,0.001642]
[1728067409344,0.94007374,62370.0,62369.0,0.001642]
[1728067409556,1.54387592,62370.0,62369.0,0.001642]
[1728067409772,1.06087592,62370.0,62369.0,0.001642]
[1728067410498,1.05887592,62370.0,62369.0,0.001642]
[1728067410742,1.05687592,62370.0,62369.0,0.001642]
[1728067411189,1.05687592,62370.0,62369.0,0.002642]
[1728067411190,1.07287592,62370.0,62369.0,0.002642]
[1728067413207,6.32161239,62370.0,62369.0,0.002642]
[1728067413446,6.28034194,62370.0,62369.0,0.002642]
[1728067413697,0.58070264,62363.0,62362.0,0.001642]
[1728067413921,3.51027954,62363.0,62362.0,0.001642]
[1728067414148,3.79244038,62363.0,62362.0,0.001642]
[1728067414371,3.81095597,62363.0,62362.0,0.001642]
[1728067414841,3.65521014,62363.0,62362.0,0.001642]
[1728067415050,3.66821014,62363.0,62362.0,0.002642]
[1728067415513,3.6821596,62363.0,62362.0,0.002642]
[1728067415741,3.68021014,62363.0,62362.0,0.002642]
[1728067415969,3.84453311,62363.0,62362.0,0.002642]
[1728067416228,3.84534631,62363.0,62362.0,0.002642]
[1728067416440,3.8450014,62363.0,62362.0,0.002642]
[1728067416866,3.84498538,62363.0,62362.0,0.002642]
[1728067417769,3.81984211,62363.0,62362.0,0.002642]
[1728067419808,0.456377,62353.0,62352.0,0.001642]
[1728067420026,0.91637374,62353.0,62352.0,0.001642]
[1728067420237,0.92516267,62353.0,62352.0,0.001642]
[1728067420473,0.92711213,62353.0,62352.0,0.001642]
[1728067420702,5.97711213,62353.0,62352.0,0.001642]
[1728067420938,6.14029884,62353.0,62352.0,0.001642]
[1728067421149,6.15429884,62353.0,62352.0,0.001642]
[1728067421836,5.99111213,62353.0,62352.0,0.001642]
[1728067422084,6.01477562,62353.0,62352.0,0.001642]
[1728067422283,5.87067946,62353.0,62352.0,0.001642]
[1728067423047,6.01477562,62353.0,62352.0,0.001642]
[1728067423302,6.00777562,62353.0,62352.0,0.001642]
[1728067423545,6.00977562,62353.0,62352.0,0.001642]
[1728067423810,6.01977562,62353.0,62352.0,0.001642]
[1728067424247,5.87567946,62353.0,62352.0,0.001642]
[1728067424999,6.35737565,62353.0,62352.0,0.001642]
[1728067425232,6.35737565,62353.0,62342.0,0.00164]
[1728067425233,0.340302,62343.0,62342.0,0.00164]
[1728067425465,0.89639026,62343.0,62342.0,0.00164]
[1728067425689,0.89639026,62343.0,62338.0,0.001642]
[1728067425690,0.283413,62339.0,62338.0,0.001642]
[1728067425937,5.70367933,62339.0,62338.0,0.001642]
[1728067426192,5.70367933,62339.0,62334.0,0.00164]
[1728067426193,0.28536446,62338.0,62334.0,0.00164]
[1728067426439,5.69833079,62338.0,62334.0,0.00164]
[1728067426678,5.70702201,62338.0,62334.0,0.00164]
[1728067426914,5.87020872,62338.0,62334.0,0.00164]
[1728067427867,6.08254807,62338.0,62334.0,0.00164]
[1728067428346,6.08183571,62338.0,62334.0,0.00164]
[1728067428808,6.10699422,62338.0,62334.0,0.00164]
[1728067429262,6.20280857,62338.0,62334.0,0.00164]
[1728067429717,0.45476746,62337.0,62334.0,0.00164]
[1728067429951,5.98058067,62337.0,62334.0,0.00164]
[1728067430176,5.98926974,62337.0,62334.0,0.00164]
[1728067430412,5.96528223,62337.0,62334.0,0.00164]
[1728067431327,5.67664324,62337.0,62334.0,0.00164]
[1728067431551,5.88313829,62337.0,62334.0,0.00164]